[Event "Late Titled Tuesday Blitz February 8 2022"]
[White "Pakleza, Zbigniew"]
[Black "Musovic, Armin"]
[WhiteFideId "1119290"]
[BlackFideId "939935"]
[WhiteElo "2467"]
[BlackElo "2250"]
[Result "1-0"]
[Round "06"]
[TimeControl "180+1"]
[Date "2022.02.09"]
[WhiteClock "0:00:04"]
[BlackClock "0:00:02"]

1. d4 {[%clk 0:03:00]}  d5 {[%clk 0:03:00]} 2. Bf4 {[%clk 0:02:59]}  c5 {[%clk 0:03:01]} 3. c3 {[%clk 0:02:59]}  Nc6 {[%clk 0:03:01]} 4. e3 {[%clk 0:02:59]}  a6 {[%clk 0:03:01]} 5. Nd2 {[%clk 0:02:58]}  f6 {[%clk 0:03:00]} 6. Ngf3 {[%clk 0:02:57]}  Bg4 {[%clk 0:03:00]} 7. Be2 {[%clk 0:02:56]}  e6 {[%clk 0:03:01]} 8. h3 {[%clk 0:02:56]}  Bh5 {[%clk 0:03:01]} 9. O-O {[%clk 0:02:55]}  Bd6 {[%clk 0:03:01]} 10. Bxd6 {[%clk 0:02:54]}  Qxd6 {[%clk 0:03:02]} 11. Qb3 {[%clk 0:02:44]}  Nge7 {[%clk 0:02:55]} 12. Qa3 {[%clk 0:02:42]}  e5 {[%clk 0:02:47]} 13. dxc5 {[%clk 0:02:32]}  Qc7 {[%clk 0:02:43]} 14. e4 {[%clk 0:02:25]}  O-O {[%clk 0:02:33]} 15. exd5 {[%clk 0:02:13]}  Nxd5 {[%clk 0:02:34]} 16. Bc4 {[%clk 0:02:13]}  Bf7 {[%clk 0:02:34]} 17. Ne4 {[%clk 0:02:08]}  Kh8 {[%clk 0:02:25]} 18. Nd6 {[%clk 0:02:05]}  Bg8 {[%clk 0:02:25]} 19. Rad1 {[%clk 0:01:38]}  Nce7 {[%clk 0:02:24]} 20. b4 {[%clk 0:01:31]}  g6 {[%clk 0:02:18]} 21. Rfe1 {[%clk 0:01:30]}  Rad8 {[%clk 0:01:59]} 22. Qb2 {[%clk 0:01:26]}  Qc6 {[%clk 0:01:44]} 23. Bxd5 {[%clk 0:01:04]}  Nxd5 {[%clk 0:01:36]} 24. c4 {[%clk 0:00:53]}  Nf4 {[%clk 0:01:33]} 25. Rxe5 {[%clk 0:00:42]}  Nxh3+ {[%clk 0:01:33]} 26. Kh2 {[%clk 0:00:35]}  Nxf2 {[%clk 0:01:21]} 27. Qxf2 {[%clk 0:00:36]}  fxe5 {[%clk 0:01:20]} 28. Qg3 {[%clk 0:00:31]}  Bxc4 {[%clk 0:00:57]} 29. Nxe5 {[%clk 0:00:19]}  Qa4 {[%clk 0:00:51]} 30. Ndf7+ {[%clk 0:00:13]}  Kg7 {[%clk 0:00:42]} 31. Rxd8 {[%clk 0:00:13]}  Bxf7 {[%clk 0:00:41]} 32. Rxf8 {[%clk 0:00:11]}  Kxf8 {[%clk 0:00:41]} 33. Qf4 {[%clk 0:00:07]}  Qe8 {[%clk 0:00:42]} 34. Qf6 {[%clk 0:00:05]}  Kg8 {[%clk 0:00:39]} 35. a3 {[%clk 0:00:05]}  Bd5 {[%clk 0:00:38]} 36. Kg3 {[%clk 0:00:04]}  Qb8 {[%clk 0:00:36]} 37. Kf2 {[%clk 0:00:04]}  a5 {[%clk 0:00:33]} 38. Ng4 {[%clk 0:00:02]}  Qf8 {[%clk 0:00:25]} 39. Ke3 {[%clk 0:00:03]}  Qe8+ {[%clk 0:00:21]} 40. Kd2 {[%clk 0:00:04]}  h5 {[%clk 0:00:21]} 41. Ne5 {[%clk 0:00:03]}  Be4 {[%clk 0:00:19]} 42. bxa5 {[%clk 0:00:02]}  Bf5 {[%clk 0:00:18]} 43. Ke3 {[%clk 0:00:02]}  h4 {[%clk 0:00:15]} 44. Kf4 {[%clk 0:00:02]}  Qa4+ {[%clk 0:00:09]} 45. Kg5 {[%clk 0:00:02]}  Qe8 {[%clk 0:00:08]} 46. Nxg6 {[%clk 0:00:02]}  Qe3+ {[%clk 0:00:06]} 47. Kxf5 {[%clk 0:00:02]}  Qd3+ {[%clk 0:00:05]} 48. Kg5 {[%clk 0:00:03]}  Qg3+ {[%clk 0:00:05]} 49. Kh6 {[%clk 0:00:03]}  Qc7 {[%clk 0:00:04]} 50. Ne7+ {[%clk 0:00:03]}  Qxe7 {[%clk 0:00:02]} 51. Qxe7 {[%clk 0:00:04]} 1-0


[Site "https://www.chess.com"]

[Event "Late Titled Tuesday Blitz February 8 2022"]
[White "Poormosavi, Seyed Kian"]
[Black "Curtis, John"]
[WhiteFideId "12585807"]
[BlackFideId "3200256"]
[WhiteElo "2116"]
[BlackElo "2203"]
[Result "1-0"]
[Round "06"]
[TimeControl "180+1"]
[Date "2022.02.09"]
[WhiteClock "0:01:17"]
[BlackClock "0:00:19"]

1. e4 {[%clk 0:02:58]}  c6 {[%clk 0:02:56]} 2. Nf3 {[%clk 0:02:57]}  d5 {[%clk 0:02:56]} 3. Nc3 {[%clk 0:02:58]}  dxe4 {[%clk 0:02:50]} 4. Nxe4 {[%clk 0:02:59]}  Bg4 {[%clk 0:02:48]} 5. Bc4 {[%clk 0:02:56]}  e6 {[%clk 0:02:47]} 6. Ng3 {[%clk 0:02:52]}  Nd7 {[%clk 0:02:43]} 7. d4 {[%clk 0:02:50]}  Ngf6 {[%clk 0:02:42]} 8. h3 {[%clk 0:02:50]}  Bxf3 {[%clk 0:02:42]} 9. Qxf3 {[%clk 0:02:51]}  Bd6 {[%clk 0:02:38]} 10. O-O {[%clk 0:02:51]}  O-O {[%clk 0:02:29]} 11. c3 {[%clk 0:02:48]}  Re8 {[%clk 0:02:01]} 12. Re1 {[%clk 0:02:43]}  a6 {[%clk 0:01:56]} 13. a4 {[%clk 0:02:40]}  Qc7 {[%clk 0:01:46]} 14. Bg5 {[%clk 0:02:25]}  Rab8 {[%clk 0:01:41]} 15. a5 {[%clk 0:02:24]}  Nd5 {[%clk 0:01:32]} 16. Nh5 {[%clk 0:02:20]}  g6 {[%clk 0:01:27]} 17. Ng3 {[%clk 0:02:05]}  Bf4 {[%clk 0:01:22]} 18. h4 {[%clk 0:02:03]}  Bxg5 {[%clk 0:01:19]} 19. hxg5 {[%clk 0:02:02]}  Qd8 {[%clk 0:01:08]} 20. Ne4 {[%clk 0:02:00]}  Kg7 {[%clk 0:01:05]} 21. g3 {[%clk 0:01:58]}  Rh8 {[%clk 0:01:00]} 22. Kg2 {[%clk 0:01:57]}  h5 {[%clk 0:00:55]} 23. gxh6+ {[%clk 0:01:55]}  Rxh6 {[%clk 0:00:54]} 24. Rh1 {[%clk 0:01:56]}  Rxh1 {[%clk 0:00:51]} 25. Rxh1 {[%clk 0:01:57]}  Qe7 {[%clk 0:00:45]} 26. g4 {[%clk 0:01:53]}  Rh8 {[%clk 0:00:45]} 27. Rxh8 {[%clk 0:01:52]}  Kxh8 {[%clk 0:00:45]} 28. g5 {[%clk 0:01:53]}  Kg7 {[%clk 0:00:45]} 29. Qh3 {[%clk 0:01:49]}  e5 {[%clk 0:00:44]} 30. dxe5 {[%clk 0:01:42]}  Qxe5 {[%clk 0:00:33]} 31. Bxd5 {[%clk 0:01:41]}  cxd5 {[%clk 0:00:17]} 32. Ng3 {[%clk 0:01:40]}  Nc5 {[%clk 0:00:16]} 33. Qg4 {[%clk 0:01:33]}  Ne4 {[%clk 0:00:16]} 34. Ne2 {[%clk 0:01:28]}  Qxg5 {[%clk 0:00:15]} 35. Qxg5 {[%clk 0:01:27]}  Nxg5 {[%clk 0:00:16]} 36. Nf4 {[%clk 0:01:28]}  Ne4 {[%clk 0:00:16]} 37. Nxd5 {[%clk 0:01:27]}  Nc5 {[%clk 0:00:17]} 38. Kf3 {[%clk 0:01:22]}  f5 {[%clk 0:00:17]} 39. b4 {[%clk 0:01:21]}  Na4 {[%clk 0:00:17]} 40. Kf4 {[%clk 0:01:19]}  Kf7 {[%clk 0:00:17]} 41. Ke5 {[%clk 0:01:20]}  Ke8 {[%clk 0:00:14]} 42. Kf6 {[%clk 0:01:19]}  Kd7 {[%clk 0:00:14]} 43. Kxg6 {[%clk 0:01:20]}  Kd6 {[%clk 0:00:14]} 44. Ne3 {[%clk 0:01:18]}  Nxc3 {[%clk 0:00:13]} 45. Nxf5+ {[%clk 0:01:18]}  Ke5 {[%clk 0:00:13]} 46. Ne3 {[%clk 0:01:14]}  Nd5 {[%clk 0:00:14]} 47. Nxd5 {[%clk 0:01:14]}  Kxd5 {[%clk 0:00:14]} 48. f4 {[%clk 0:01:14]}  Kc4 {[%clk 0:00:15]} 49. f5 {[%clk 0:01:15]}  Kxb4 {[%clk 0:00:16]} 50. f6 {[%clk 0:01:16]}  Kxa5 {[%clk 0:00:17]} 51. f7 {[%clk 0:01:17]}  b5 {[%clk 0:00:18]} 52. f8=Q {[%clk 0:01:18]}  b4 {[%clk 0:00:19]} 53. Kf5 {[%clk 0:01:17]}  Ka4 {[%clk 0:00:20]} 54. Ke4 {[%clk 0:01:18]}  Kb3 {[%clk 0:00:20]} 55. Kd3 {[%clk 0:01:18]}  a5 {[%clk 0:00:18]} 56. Qf7+ {[%clk 0:01:18]}  Kb2 {[%clk 0:00:17]} 57. Qf6+ {[%clk 0:01:18]}  Ka2 {[%clk 0:00:17]} 58. Kc2 {[%clk 0:01:17]}  b3+ {[%clk 0:00:18]} 59. Kc1 {[%clk 0:01:17]}  a4 {[%clk 0:00:19]} 60. Qb2# {[%clk 0:01:17]} 1-0


[Site "https://www.chess.com"]

[Event "Late Titled Tuesday Blitz February 8 2022"]
[White "Postnikov, Daniil"]
[Black "Maksimovic, Bojan"]
[WhiteFideId "4166329"]
[BlackFideId "14408120"]
[WhiteElo "2261"]
[BlackElo "2450"]
[Result "0-1"]
[Round "06"]
[TimeControl "180+1"]
[Date "2022.02.08"]
[WhiteClock "0:00:05"]
[BlackClock "0:00:05"]

1. e4 {[%clk 0:03:00]}  c5 {[%clk 0:03:00]} 2. Nf3 {[%clk 0:03:00]}  Nc6 {[%clk 0:03:00]} 3. Bb5 {[%clk 0:03:00]}  e6 {[%clk 0:02:59]} 4. O-O {[%clk 0:02:58]}  Nge7 {[%clk 0:02:59]} 5. Re1 {[%clk 0:02:58]}  a6 {[%clk 0:02:59]} 6. Bf1 {[%clk 0:02:58]}  d5 {[%clk 0:02:59]} 7. e5 {[%clk 0:02:58]}  Ng6 {[%clk 0:02:56]} 8. c3 {[%clk 0:02:55]}  d4 {[%clk 0:02:57]} 9. g3 {[%clk 0:02:53]}  Be7 {[%clk 0:02:56]} 10. h4 {[%clk 0:02:52]}  h5 {[%clk 0:02:43]} 11. Bd3 {[%clk 0:02:42]}  b6 {[%clk 0:02:36]} 12. Be4 {[%clk 0:01:25]}  Bb7 {[%clk 0:02:36]} 13. cxd4 {[%clk 0:01:24]}  Qd7 {[%clk 0:02:09]} 14. Qb3 {[%clk 0:01:01]}  Nxd4 {[%clk 0:01:32]} 15. Nxd4 {[%clk 0:01:01]}  cxd4 {[%clk 0:01:33]} 16. Bxb7 {[%clk 0:00:51]}  Qxb7 {[%clk 0:01:33]} 17. Qa4+ {[%clk 0:00:52]}  Qd7 {[%clk 0:01:14]} 18. Qxd7+ {[%clk 0:00:40]}  Kxd7 {[%clk 0:01:15]} 19. d3 {[%clk 0:00:41]}  Rhc8 {[%clk 0:01:15]} 20. Nd2 {[%clk 0:00:40]}  Bb4 {[%clk 0:01:09]} 21. Re4 {[%clk 0:00:34]}  Bxd2 {[%clk 0:00:26]} 22. Bxd2 {[%clk 0:00:31]}  Rc2 {[%clk 0:00:26]} 23. Rxd4+ {[%clk 0:00:30]}  Ke8 {[%clk 0:00:27]} 24. Bc3 {[%clk 0:00:18]}  Ne7 {[%clk 0:00:09]} 25. Rd6 {[%clk 0:00:13]}  Nd5 {[%clk 0:00:09]} 26. Bd4 {[%clk 0:00:13]}  Rb8 {[%clk 0:00:05]} 27. Rf1 {[%clk 0:00:12]}  Ke7 {[%clk 0:00:06]} 28. f4 {[%clk 0:00:13]}  g6 {[%clk 0:00:06]} 29. Rf2 {[%clk 0:00:11]}  Rxf2 {[%clk 0:00:04]} 30. Kxf2 {[%clk 0:00:11]}  Rc8 {[%clk 0:00:05]} 31. Bxb6 {[%clk 0:00:08]}  Rc2+ {[%clk 0:00:05]} 32. Kf3 {[%clk 0:00:08]}  Rxb2 {[%clk 0:00:06]} 33. Bc5 {[%clk 0:00:08]}  Ke8 {[%clk 0:00:06]} 34. Rxa6 {[%clk 0:00:08]}  Rd2 {[%clk 0:00:05]} 35. d4 {[%clk 0:00:08]}  Rd3+ {[%clk 0:00:05]} 36. Kg2 {[%clk 0:00:07]}  Rd2+ {[%clk 0:00:06]} 37. Kh3 {[%clk 0:00:07]}  Ne3 {[%clk 0:00:05]} 38. Ra8+ {[%clk 0:00:07]}  Kd7 {[%clk 0:00:05]} 39. Ra7+ {[%clk 0:00:07]}  Kc6 {[%clk 0:00:06]} 40. Rxf7 {[%clk 0:00:05]}  Ng4 {[%clk 0:00:05]} 0-1


[Site "https://www.chess.com"]

[Event "Late Titled Tuesday Blitz February 8 2022"]
[White "Pourkashiyan, Atousa"]
[Black "Balint, Vilmos"]
[WhiteFideId "12502014"]
[BlackFideId "718050"]
[WhiteElo "2247"]
[BlackElo "2059"]
[Result "1-0"]
[Round "06"]
[TimeControl "180+1"]
[Date "2022.02.09"]
[WhiteClock "0:00:20"]
[BlackClock "0:00:39"]

1. e4 {[%clk 0:03:00]}  e6 {[%clk 0:02:56]} 2. d4 {[%clk 0:03:00]}  d5 {[%clk 0:02:56]} 3. Nd2 {[%clk 0:03:01]}  a6 {[%clk 0:02:55]} 4. Ngf3 {[%clk 0:02:56]}  c5 {[%clk 0:02:55]} 5. exd5 {[%clk 0:02:52]}  exd5 {[%clk 0:02:54]} 6. dxc5 {[%clk 0:02:52]}  Bxc5 {[%clk 0:02:54]} 7. Bd3 {[%clk 0:02:53]}  Nf6 {[%clk 0:02:54]} 8. O-O {[%clk 0:02:51]}  O-O {[%clk 0:02:54]} 9. Nb3 {[%clk 0:02:51]}  Be7 {[%clk 0:02:54]} 10. c3 {[%clk 0:02:50]}  Nc6 {[%clk 0:02:54]} 11. h3 {[%clk 0:02:49]}  Re8 {[%clk 0:02:55]} 12. Bc2 {[%clk 0:02:47]}  Be6 {[%clk 0:02:52]} 13. Qd3 {[%clk 0:02:47]}  g6 {[%clk 0:02:40]} 14. Qd1 {[%clk 0:02:29]}  Rc8 {[%clk 0:02:38]} 15. Bh6 {[%clk 0:02:28]}  Qd7 {[%clk 0:02:31]} 16. Ng5 {[%clk 0:01:56]}  Bf5 {[%clk 0:02:26]} 17. Re1 {[%clk 0:01:51]}  Bxc2 {[%clk 0:02:17]} 18. Qxc2 {[%clk 0:01:47]}  Bf8 {[%clk 0:01:51]} 19. Bxf8 {[%clk 0:01:39]}  Kxf8 {[%clk 0:01:51]} 20. Qd2 {[%clk 0:01:33]}  Kg7 {[%clk 0:01:50]} 21. Rad1 {[%clk 0:01:18]}  h6 {[%clk 0:01:47]} 22. Nf3 {[%clk 0:01:12]}  Rxe1+ {[%clk 0:01:34]} 23. Rxe1 {[%clk 0:01:11]}  Qd6 {[%clk 0:01:22]} 24. Nbd4 {[%clk 0:01:01]}  Rd8 {[%clk 0:01:18]} 25. Qd3 {[%clk 0:00:56]}  Qf4 {[%clk 0:01:07]} 26. Nxc6 {[%clk 0:00:46]}  bxc6 {[%clk 0:01:04]} 27. Qxa6 {[%clk 0:00:46]}  Rd6 {[%clk 0:00:59]} 28. Qd3 {[%clk 0:00:45]}  Qa4 {[%clk 0:00:59]} 29. a3 {[%clk 0:00:45]}  Qb3 {[%clk 0:00:58]} 30. Qd2 {[%clk 0:00:43]}  Ne4 {[%clk 0:00:53]} 31. Qd4+ {[%clk 0:00:43]}  Kh7 {[%clk 0:00:51]} 32. Re2 {[%clk 0:00:43]}  Rf6 {[%clk 0:00:48]} 33. Rxe4 {[%clk 0:00:35]}  dxe4 {[%clk 0:00:48]} 34. Qxf6 {[%clk 0:00:35]}  exf3 {[%clk 0:00:49]} 35. Qxf3 {[%clk 0:00:35]}  Qxb2 {[%clk 0:00:43]} 36. Qxf7+ {[%clk 0:00:35]}  Kh8 {[%clk 0:00:44]} 37. Qf6+ {[%clk 0:00:27]}  Kh7 {[%clk 0:00:43]} 38. Qf7+ {[%clk 0:00:21]}  Kh8 {[%clk 0:00:44]} 39. Qxg6 {[%clk 0:00:20]}  Qxc3 {[%clk 0:00:36]} 40. Qxh6+ {[%clk 0:00:19]}  Kg8 {[%clk 0:00:37]} 41. Qg5+ {[%clk 0:00:18]}  Kh8 {[%clk 0:00:37]} 42. Qh4+ {[%clk 0:00:18]}  Kg8 {[%clk 0:00:38]} 43. Qg3+ {[%clk 0:00:18]}  Qxg3 {[%clk 0:00:38]} 44. fxg3 {[%clk 0:00:19]}  c5 {[%clk 0:00:38]} 45. Kf2 {[%clk 0:00:19]}  c4 {[%clk 0:00:39]} 46. Ke3 {[%clk 0:00:20]} 1-0


[Site "https://www.chess.com"]

[Event "Late Titled Tuesday Blitz February 8 2022"]
[White "Ramirez, Alejandro"]
[Black "Mamedyarov, Shakhriyar"]
[WhiteFideId "6500617"]
[BlackFideId "13401319"]
[WhiteElo "2694"]
[BlackElo "2769"]
[Result "0-1"]
[Round "06"]
[TimeControl "180+1"]
[Date "2022.02.08"]
[WhiteClock "0:01:57"]
[BlackClock "0:02:29"]

1. e4 {[%clk 0:03:00]}  c5 {[%clk 0:02:59]} 2. Nf3 {[%clk 0:03:01]}  e6 {[%clk 0:03:00]} 3. d4 {[%clk 0:03:01]}  cxd4 {[%clk 0:03:00]} 4. Nxd4 {[%clk 0:03:01]}  Nf6 {[%clk 0:03:00]} 5. Nc3 {[%clk 0:03:02]}  Nc6 {[%clk 0:03:01]} 6. a3 {[%clk 0:02:56]}  d5 {[%clk 0:02:58]} 7. Bb5 {[%clk 0:02:44]}  Bd7 {[%clk 0:02:57]} 8. exd5 {[%clk 0:02:45]}  exd5 {[%clk 0:02:56]} 9. O-O {[%clk 0:02:44]}  Be7 {[%clk 0:02:57]} 10. Re1 {[%clk 0:02:43]}  O-O {[%clk 0:02:57]} 11. Bg5 {[%clk 0:02:44]}  h6 {[%clk 0:02:56]} 12. Bh4 {[%clk 0:02:42]}  a6 {[%clk 0:02:55]} 13. Bf1 {[%clk 0:02:40]}  Rc8 {[%clk 0:02:53]} 14. Qd3 {[%clk 0:02:38]}  Re8 {[%clk 0:02:41]} 15. Rad1 {[%clk 0:02:23]}  Qb6 {[%clk 0:02:35]} 16. Rxe7 {[%clk 0:01:59]}  Nxe7 {[%clk 0:02:30]} 17. Bxf6 {[%clk 0:01:59]}  Qxf6 {[%clk 0:02:29]} 18. Qf5 {[%clk 0:01:57]} 0-1


[Site "https://www.chess.com"]

[Event "Late Titled Tuesday Blitz February 8 2022"]
[White "Rangel, Daniel"]
[Black "Stanisz, Patryk"]
[WhiteFideId "2124475"]
[BlackFideId "1123106"]
[WhiteElo "2187"]
[BlackElo "1876"]
[Result "1-0"]
[Round "06"]
[TimeControl "180+1"]
[Date "2022.02.09"]
[WhiteClock "0:00:11"]
[BlackClock "0:00:05"]

1. e4 {[%clk 0:03:00]}  c5 {[%clk 0:02:59]} 2. Nf3 {[%clk 0:03:00]}  Nc6 {[%clk 0:02:59]} 3. d4 {[%clk 0:03:01]}  cxd4 {[%clk 0:03:00]} 4. Nxd4 {[%clk 0:03:01]}  Nf6 {[%clk 0:03:01]} 5. Nc3 {[%clk 0:03:00]}  e5 {[%clk 0:03:01]} 6. Ndb5 {[%clk 0:03:00]}  d6 {[%clk 0:03:01]} 7. Nd5 {[%clk 0:02:59]}  Nxd5 {[%clk 0:03:00]} 8. exd5 {[%clk 0:02:59]}  Ne7 {[%clk 0:03:01]} 9. c4 {[%clk 0:02:57]}  Nf5 {[%clk 0:03:01]} 10. g4 {[%clk 0:02:44]}  Nh4 {[%clk 0:02:59]} 11. c5 {[%clk 0:02:43]}  a6 {[%clk 0:02:20]} 12. Nxd6+ {[%clk 0:02:40]}  Bxd6 {[%clk 0:02:20]} 13. cxd6 {[%clk 0:02:40]}  O-O {[%clk 0:02:16]} 14. Be3 {[%clk 0:02:32]}  Qxd6 {[%clk 0:02:08]} 15. Bd3 {[%clk 0:01:51]}  e4 {[%clk 0:02:02]} 16. Be2 {[%clk 0:01:41]}  Nf3+ {[%clk 0:01:47]} 17. Bxf3 {[%clk 0:01:37]}  exf3 {[%clk 0:01:48]} 18. Qxf3 {[%clk 0:01:36]}  Qb4+ {[%clk 0:01:47]} 19. Kf1 {[%clk 0:01:35]}  Bxg4 {[%clk 0:01:44]} 20. Qf4 {[%clk 0:01:32]}  Bh3+ {[%clk 0:01:32]} 21. Kg1 {[%clk 0:01:31]}  Qxb2 {[%clk 0:01:27]} 22. Bd4 {[%clk 0:01:19]}  Qc2 {[%clk 0:01:10]} 23. Qg3 {[%clk 0:01:11]}  Qg6 {[%clk 0:01:05]} 24. f3 {[%clk 0:01:08]}  Rfd8 {[%clk 0:00:49]} 25. Kf2 {[%clk 0:01:00]}  Qc2+ {[%clk 0:00:43]} 26. Kg1 {[%clk 0:01:00]}  Qg6 {[%clk 0:00:40]} 27. Kf2 {[%clk 0:01:00]}  Rxd5 {[%clk 0:00:33]} 28. Qxg6 {[%clk 0:00:57]}  hxg6 {[%clk 0:00:31]} 29. Be3 {[%clk 0:00:57]}  Re8 {[%clk 0:00:30]} 30. Rhe1 {[%clk 0:00:56]}  Be6 {[%clk 0:00:28]} 31. Rac1 {[%clk 0:00:55]}  Red8 {[%clk 0:00:27]} 32. Rc7 {[%clk 0:00:54]}  R5d7 {[%clk 0:00:27]} 33. Rc3 {[%clk 0:00:54]}  Bd5 {[%clk 0:00:25]} 34. a3 {[%clk 0:00:53]}  Bc6 {[%clk 0:00:25]} 35. f4 {[%clk 0:00:53]}  Rd3 {[%clk 0:00:26]} 36. Rxd3 {[%clk 0:00:50]}  Rxd3 {[%clk 0:00:27]} 37. Ra1 {[%clk 0:00:46]}  Rb3 {[%clk 0:00:27]} 38. a4 {[%clk 0:00:46]}  Rb2+ {[%clk 0:00:27]} 39. Kf1 {[%clk 0:00:42]}  f6 {[%clk 0:00:27]} 40. a5 {[%clk 0:00:42]}  Kf7 {[%clk 0:00:27]} 41. Bg1 {[%clk 0:00:39]}  Ke6 {[%clk 0:00:25]} 42. Bf2 {[%clk 0:00:38]}  Kf5 {[%clk 0:00:24]} 43. Bg3 {[%clk 0:00:38]}  Kg4 {[%clk 0:00:24]} 44. Kg1 {[%clk 0:00:36]}  Rg2+ {[%clk 0:00:23]} 45. Kf1 {[%clk 0:00:37]}  Rb2 {[%clk 0:00:23]} 46. Kg1 {[%clk 0:00:37]}  g5 {[%clk 0:00:23]} 47. fxg5 {[%clk 0:00:36]}  Kxg5 {[%clk 0:00:24]} 48. Ra3 {[%clk 0:00:30]}  f5 {[%clk 0:00:21]} 49. Be5 {[%clk 0:00:27]}  Rg2+ {[%clk 0:00:20]} 50. Kf1 {[%clk 0:00:27]}  g6 {[%clk 0:00:16]} 51. Rc3 {[%clk 0:00:23]}  Ra2 {[%clk 0:00:16]} 52. Rg3+ {[%clk 0:00:22]}  Kh6 {[%clk 0:00:15]} 53. Rh3+ {[%clk 0:00:22]}  Kg5 {[%clk 0:00:16]} 54. Rg3+ {[%clk 0:00:23]}  Kh5 {[%clk 0:00:14]} 55. Bf6 {[%clk 0:00:17]}  Ra1+ {[%clk 0:00:13]} 56. Ke2 {[%clk 0:00:15]}  Ra2+ {[%clk 0:00:13]} 57. Ke1 {[%clk 0:00:14]}  f4 {[%clk 0:00:11]} 58. Rg5+ {[%clk 0:00:13]}  Kh4 {[%clk 0:00:11]} 59. Rg2+ {[%clk 0:00:12]}  Kh3 {[%clk 0:00:09]} 60. Rxa2 {[%clk 0:00:13]}  Kg4 {[%clk 0:00:09]} 61. Kf2 {[%clk 0:00:12]}  g5 {[%clk 0:00:09]} 62. Bd8 {[%clk 0:00:12]}  Kh4 {[%clk 0:00:09]} 63. Kg1 {[%clk 0:00:13]}  Kh3 {[%clk 0:00:08]} 64. Bxg5 {[%clk 0:00:12]}  f3 {[%clk 0:00:08]} 65. Be3 {[%clk 0:00:12]}  f2+ {[%clk 0:00:07]} 66. Bxf2 {[%clk 0:00:13]}  Bg2 {[%clk 0:00:07]} 67. Ra3+ {[%clk 0:00:12]}  Bf3 {[%clk 0:00:04]} 68. Rxf3+ {[%clk 0:00:12]}  Kg4 {[%clk 0:00:05]} 69. Rb3 {[%clk 0:00:11]} 1-0


[Site "https://www.chess.com"]

[Event "Late Titled Tuesday Blitz February 8 2022"]
[White "Roman, Rodrigo"]
[Black "Terletsky, Oleg"]
[WhiteFideId "3701220"]
[BlackFideId "14116774"]
[WhiteElo "2001"]
[BlackElo "2050"]
[Result "1-0"]
[Round "06"]
[TimeControl "180+1"]
[Date "2022.02.09"]
[WhiteClock "0:00:13"]
[BlackClock "0:00:07"]

1. e4 {[%clk 0:03:00]}  c6 {[%clk 0:03:00]} 2. d4 {[%clk 0:02:54]}  d5 {[%clk 0:03:00]} 3. e5 {[%clk 0:02:54]}  Bf5 {[%clk 0:02:59]} 4. h4 {[%clk 0:02:54]}  h6 {[%clk 0:02:51]} 5. g4 {[%clk 0:02:53]}  Bd7 {[%clk 0:02:51]} 6. f4 {[%clk 0:02:52]}  e6 {[%clk 0:02:43]} 7. c3 {[%clk 0:02:52]}  h5 {[%clk 0:02:42]} 8. g5 {[%clk 0:02:41]}  Ne7 {[%clk 0:02:42]} 9. Bd3 {[%clk 0:02:40]}  Nf5 {[%clk 0:02:34]} 10. Ne2 {[%clk 0:02:36]}  c5 {[%clk 0:02:29]} 11. Bxf5 {[%clk 0:02:32]}  exf5 {[%clk 0:02:29]} 12. dxc5 {[%clk 0:02:31]}  Bxc5 {[%clk 0:02:15]} 13. Qxd5 {[%clk 0:02:26]}  Qb6 {[%clk 0:01:52]} 14. Qb3 {[%clk 0:02:20]}  Bc6 {[%clk 0:01:39]} 15. Qxb6 {[%clk 0:02:13]}  Bxb6 {[%clk 0:01:38]} 16. Rh3 {[%clk 0:02:13]}  Nd7 {[%clk 0:01:36]} 17. Nd4 {[%clk 0:02:09]}  Be4 {[%clk 0:01:33]} 18. Be3 {[%clk 0:02:07]}  Nc5 {[%clk 0:01:32]} 19. b4 {[%clk 0:02:01]}  Nd3+ {[%clk 0:01:27]} 20. Kd2 {[%clk 0:02:01]}  O-O-O {[%clk 0:01:09]} 21. a3 {[%clk 0:01:48]}  Nb2 {[%clk 0:00:58]} 22. Ke2 {[%clk 0:01:35]}  Nc4 {[%clk 0:00:57]} 23. Nd2 {[%clk 0:01:30]}  Nxe3 {[%clk 0:00:49]} 24. Kxe3 {[%clk 0:01:30]}  Bd5 {[%clk 0:00:22]} 25. a4 {[%clk 0:01:30]}  a6 {[%clk 0:00:20]} 26. Rd1 {[%clk 0:01:24]}  Rd7 {[%clk 0:00:18]} 27. Ke2 {[%clk 0:01:01]}  g6 {[%clk 0:00:15]} 28. a5 {[%clk 0:00:57]}  Ba7 {[%clk 0:00:14]} 29. Nf1 {[%clk 0:00:45]}  Bc4+ {[%clk 0:00:13]} 30. Ke1 {[%clk 0:00:43]}  Rhd8 {[%clk 0:00:13]} 31. Ne3 {[%clk 0:00:43]}  Bd5 {[%clk 0:00:10]} 32. Nxd5 {[%clk 0:00:42]}  Rxd5 {[%clk 0:00:11]} 33. Rhd3 {[%clk 0:00:42]}  Bxd4 {[%clk 0:00:10]} 34. Rxd4 {[%clk 0:00:42]}  Rxd4 {[%clk 0:00:10]} 35. Rxd4 {[%clk 0:00:43]}  Re8 {[%clk 0:00:09]} 36. Kd2 {[%clk 0:00:41]}  Re6 {[%clk 0:00:10]} 37. c4 {[%clk 0:00:39]}  Kc7 {[%clk 0:00:10]} 38. Kc3 {[%clk 0:00:39]}  Rc6 {[%clk 0:00:10]} 39. b5 {[%clk 0:00:39]}  axb5 {[%clk 0:00:10]} 40. Kb4 {[%clk 0:00:39]}  bxc4 {[%clk 0:00:08]} 41. Rxc4 {[%clk 0:00:39]}  Rxc4+ {[%clk 0:00:08]} 42. Kxc4 {[%clk 0:00:40]}  Kc6 {[%clk 0:00:09]} 43. Kb4 {[%clk 0:00:38]}  b5 {[%clk 0:00:04]} 44. a6 {[%clk 0:00:34]}  Kb6 {[%clk 0:00:04]} 45. a7 {[%clk 0:00:35]}  Kxa7 {[%clk 0:00:05]} 46. Kxb5 {[%clk 0:00:36]}  Kb7 {[%clk 0:00:05]} 47. Kc5 {[%clk 0:00:36]}  Kc7 {[%clk 0:00:06]} 48. Kd5 {[%clk 0:00:37]}  Kd7 {[%clk 0:00:06]} 49. Kd4 {[%clk 0:00:32]}  Kc7 {[%clk 0:00:05]} 50. Kc5 {[%clk 0:00:32]}  Kd7 {[%clk 0:00:05]} 51. Kd5 {[%clk 0:00:32]}  Ke7 {[%clk 0:00:03]} 52. Kc6 {[%clk 0:00:33]}  Ke6 {[%clk 0:00:02]} 53. Kc7 {[%clk 0:00:14]}  Kd5 {[%clk 0:00:03]} 54. Kd7 {[%clk 0:00:14]}  Ke4 {[%clk 0:00:04]} 55. e6 {[%clk 0:00:12]}  Kxf4 {[%clk 0:00:04]} 56. exf7 {[%clk 0:00:11]}  Kg4 {[%clk 0:00:05]} 57. f8=Q {[%clk 0:00:12]}  Kxh4 {[%clk 0:00:06]} 58. Qf6 {[%clk 0:00:13]}  Kg4 {[%clk 0:00:06]} 59. Qxg6 {[%clk 0:00:13]}  h4 {[%clk 0:00:07]} 60. Qf6 {[%clk 0:00:13]}  h3 {[%clk 0:00:07]} 61. g6 {[%clk 0:00:14]}  h2 {[%clk 0:00:08]} 62. Qh8 {[%clk 0:00:13]}  f4 {[%clk 0:00:07]} 63. g7 {[%clk 0:00:13]} 1-0


[Site "https://www.chess.com"]